[Event "*** Titled Tuesday Blitz"]
[Site "Chess.com"]
[Date "2019.07.02"]
[Round "7"]
[White "VladDobrov"]
[Black "Micki-taryan"]
[Result "1-0"]
[WhiteElo "2862"]
[BlackElo "2953"]
[TimeControl "180+2"]
[EndTime "14:35:47 PDT"]
[Termination "VladDobrov won by resignation"]

1. d4 {[%clk 0:03:01.9]} 1... Nf6 {[%clk 0:03:01.1]} 2. Nf3 {[%clk 0:03:03.1]}
2... d5 {[%clk 0:03:00.6]} 3. Bf4 {[%clk 0:03:03.7]} 3... c5 {[%clk 0:02:58.1]}
4. e3 {[%clk 0:03:03.9]} 4... e6 {[%clk 0:02:58.4]} 5. Nbd2 {[%clk 0:03:03.7]}
5... Bd6 {[%clk 0:02:58.2]} 6. Bb5+ {[%clk 0:03:04.3]} 6... Nc6 {[%clk
0:02:52.5]} 7. Bxc6+ {[%clk 0:02:57.7]} 7... bxc6 {[%clk 0:02:54.4]} 8. Bxd6
{[%clk 0:02:43.3]} 8... Qxd6 {[%clk 0:02:56.3]} 9. c3 {[%clk 0:02:43.7]} 9...
Rb8 {[%clk 0:02:44.3]} 10. Qa4 {[%clk 0:02:08.1]} 10... cxd4 {[%clk 0:02:24.6]}
11. cxd4 {[%clk 0:02:06.6]} 11... Rxb2 {[%clk 0:02:15.2]} 12. O-O {[%clk
0:01:49.2]} 12... Rb7 {[%clk 0:01:39.4]} 13. Ne5 {[%clk 0:01:37.4]} 13... Rc7
{[%clk 0:01:37.9]} 14. Rfc1 {[%clk 0:01:37.2]} 14... O-O {[%clk 0:01:38.7]} 15.
Rxc6 {[%clk 0:01:16.3]} 15... Rxc6 {[%clk 0:01:38.5]} 16. Qxc6 {[%clk
0:01:17.9]} 16... Qa3 {[%clk 0:01:13.1]} 17. Qc1 {[%clk 0:01:08.7]} 17... Qd6
{[%clk 0:01:01.1]} 18. Nb3 {[%clk 0:01:06.1]} 18... Bb7 {[%clk 0:00:42.7]} 19.
Qc5 {[%clk 0:01:06]} 19... Qa6 {[%clk 0:00:43.5]} 20. Qc7 {[%clk 0:00:49.9]}
20... Ba8 {[%clk 0:00:37.9]} 21. h3 {[%clk 0:00:45.6]} 21... h5 {[%clk
0:00:37.8]} 22. a4 {[%clk 0:00:40.8]} 22... Qe2 {[%clk 0:00:35.3]} 23. Nc5
{[%clk 0:00:29]} 23... g5 {[%clk 0:00:35.5]} 24. Qe7 {[%clk 0:00:27.8]} 24...
Nh7 {[%clk 0:00:36.9]} 25. Ncd7 {[%clk 0:00:24.5]} 25... Qb2 {[%clk 0:00:27.9]}
26. Rf1 {[%clk 0:00:23.5]} 26... Qb7 {[%clk 0:00:24.9]} 27. f4 {[%clk
0:00:19.5]} 27... f6 {[%clk 0:00:11.8]} 28. Qxe6+ {[%clk 0:00:18.7]} 28... Kg7
{[%clk 0:00:12.8]} 29. fxg5 {[%clk 0:00:14.9]} 29... fxe5 {[%clk 0:00:12.4]} 30.
Nxf8 {[%clk 0:00:15.1]} 30... Nxf8 {[%clk 0:00:08.3]} 31. Qf6+ {[%clk
0:00:16.4]} 1-0

[Event "*** Titled Tuesday Blitz"]
[Site "Chess.com"]
[Date "2019.07.02"]
[Round "7"]
[White "Infernal_XaM"]
[Black "Barrelius"]
[Result "1-0"]
[WhiteElo "2871"]
[BlackElo "2608"]
[TimeControl "180+2"]
[EndTime "14:35:48 PDT"]
[Termination "Infernal_XaM won on time"]

1. c4 {[%clk 0:03:01.9]} 1... c5 {[%clk 0:03:01]} 2. Nc3 {[%clk 0:03:02.6]} 2...
Nc6 {[%clk 0:03:01.9]} 3. a3 {[%clk 0:03:03.6]} 3... g6 {[%clk 0:03:01.2]} 4. b4
{[%clk 0:03:03.8]} 4... b6 {[%clk 0:03:01.2]} 5. b5 {[%clk 0:03:04.1]} 5... Na5
{[%clk 0:03:02]} 6. e3 {[%clk 0:03:04.1]} 6... Bg7 {[%clk 0:03:00.1]} 7. Nf3
{[%clk 0:03:04.7]} 7... e6 {[%clk 0:02:57.1]} 8. Bb2 {[%clk 0:03:05.1]} 8... d6
{[%clk 0:02:44.5]} 9. Qc2 {[%clk 0:03:05.1]} 9... Bb7 {[%clk 0:02:39.9]} 10. Nd5
{[%clk 0:02:58.6]} 10... Bxb2 {[%clk 0:02:13.1]} 11. Qxb2 {[%clk 0:02:58.9]}
11... f6 {[%clk 0:02:14]} 12. Nf4 {[%clk 0:02:59.8]} 12... Kf7 {[%clk
0:02:08.6]} 13. d4 {[%clk 0:02:58.4]} 13... Bxf3 {[%clk 0:02:06.2]} 14. gxf3
{[%clk 0:02:58.6]} 14... cxd4 {[%clk 0:01:54.2]} 15. exd4 {[%clk 0:02:58.5]}
15... e5 {[%clk 0:01:49.5]} 16. Nd5 {[%clk 0:02:50.2]} 16... Ne7 {[%clk
0:01:49.9]} 17. Nb4 {[%clk 0:02:49.5]} 17... Rc8 {[%clk 0:01:46.4]} 18. Rc1
{[%clk 0:02:43.2]} 18... Kg7 {[%clk 0:01:47.3]} 19. d5 {[%clk 0:02:43.2]} 19...
Nf5 {[%clk 0:01:43]} 20. Nc6 {[%clk 0:02:41.5]} 20... Nxc6 {[%clk 0:01:39.3]}
21. bxc6 {[%clk 0:02:42.7]} 21... Nd4 {[%clk 0:01:39.1]} 22. Be2 {[%clk
0:02:38.7]} 22... g5 {[%clk 0:01:31.1]} 23. h4 {[%clk 0:02:36.3]} 23... h6
{[%clk 0:01:30]} 24. h5 {[%clk 0:02:37.4]} 24... f5 {[%clk 0:01:26.5]} 25. Kf1
{[%clk 0:02:37]} 25... Rf8 {[%clk 0:01:13.4]} 26. Rg1 {[%clk 0:02:37.8]} 26...
Kh7 {[%clk 0:01:08.3]} 27. Rd1 {[%clk 0:02:33.6]} 27... Qf6 {[%clk 0:01:05.6]}
28. Kg2 {[%clk 0:02:28.3]} 28... g4 {[%clk 0:01:02.4]} 29. fxg4 {[%clk
0:02:10.2]} 29... fxg4 {[%clk 0:01:01.2]} 30. Bxg4 {[%clk 0:02:10.8]} 30... Rg8
{[%clk 0:01:02.3]} 31. Kf1 {[%clk 0:02:08.9]} 31... Rcf8 {[%clk 0:00:50.1]} 32.
Rd3 {[%clk 0:02:06.6]} 32... Qf4 {[%clk 0:00:43.3]} 33. Rdg3 {[%clk 0:01:52.3]}
33... Rg5 {[%clk 0:00:41]} 34. c7 {[%clk 0:01:48.8]} 34... Qe4 {[%clk
0:00:18.2]} 35. c8=Q {[%clk 0:01:42.7]} 35... Rxc8 {[%clk 0:00:09.8]} 36. Bxc8
{[%clk 0:01:43.3]} 36... Nf3 {[%clk 0:00:05.5]} 37. Rxf3 {[%clk 0:01:34.9]}
37... Rxg1+ {[%clk 0:00:04.3]} 38. Kxg1 {[%clk 0:01:34.6]} 38... Qxf3 {[%clk
0:00:05.4]} 39. Qc2+ {[%clk 0:01:29.6]} 39... e4 {[%clk 0:00:06.8]} 40. Qd2
{[%clk 0:01:14.8]} 40... Qxh5 {[%clk 0:00:07.5]} 41. Qf4 {[%clk 0:01:13.3]}
41... Qd1+ {[%clk 0:00:05.5]} 42. Kg2 {[%clk 0:01:14.4]} 1-0

[Event "*** Titled Tuesday Blitz"]
[Site "Chess.com"]
[Date "2019.07.02"]
[Round "7"]
[White "SavelievAlexei"]
[Black "TonRicher"]
[Result "1/2-1/2"]
[WhiteElo "2385"]
[BlackElo "2403"]
[TimeControl "180+2"]
[EndTime "14:35:49 PDT"]
[Termination "Game drawn by repetition"]

1. e4 {[%clk 0:03:01.9]} 1... e5 {[%clk 0:02:34.4]} 2. Nf3 {[%clk 0:03:01]} 2...
Nc6 {[%clk 0:02:36]} 3. Bc4 {[%clk 0:03:01.7]} 3... Nf6 {[%clk 0:02:36.6]} 4. d3
{[%clk 0:03:02.4]} 4... Be7 {[%clk 0:02:37.3]} 5. O-O {[%clk 0:03:02.9]} 5...
O-O {[%clk 0:02:38.8]} 6. a4 {[%clk 0:03:03.7]} 6... d6 {[%clk 0:02:40]} 7. c3
{[%clk 0:03:04.7]} 7... h6 {[%clk 0:02:28.8]} 8. h3 {[%clk 0:03:04.8]} 8... Nh7
{[%clk 0:02:20]} 9. Re1 {[%clk 0:03:00.6]} 9... Ng5 {[%clk 0:02:20.8]} 10. Nbd2
{[%clk 0:03:00.5]} 10... Be6 {[%clk 0:02:11]} 11. b4 {[%clk 0:02:59.8]} 11...
Nxf3+ {[%clk 0:02:08.9]} 12. Qxf3 {[%clk 0:03:00.1]} 12... Qd7 {[%clk
0:02:06.7]} 13. Bd5 {[%clk 0:02:53.3]} 13... Nd8 {[%clk 0:02:01.3]} 14. Nf1
{[%clk 0:02:50.4]} 14... c6 {[%clk 0:02:02.1]} 15. Ba2 {[%clk 0:02:50.7]} 15...
Bxa2 {[%clk 0:01:54.1]} 16. Rxa2 {[%clk 0:02:52.6]} 16... f5 {[%clk 0:01:55.4]}
17. exf5 {[%clk 0:02:51.7]} 17... Qxf5 {[%clk 0:01:45.2]} 18. Qxf5 {[%clk
0:02:52.1]} 18... Rxf5 {[%clk 0:01:45.8]} 19. d4 {[%clk 0:02:52.7]} 19... Nf7
{[%clk 0:01:28.9]} 20. Ng3 {[%clk 0:02:52.2]} 20... Rf6 {[%clk 0:01:28.4]} 21.
Ne4 {[%clk 0:02:51.4]} 21... Rg6 {[%clk 0:01:26.7]} 22. Ng3 {[%clk 0:02:38.6]}
22... Bf6 {[%clk 0:01:23]} 23. Nf5 {[%clk 0:02:32.9]} 23... exd4 {[%clk
0:01:13.8]} 24. cxd4 {[%clk 0:02:33.9]} 24... Kf8 {[%clk 0:01:11.2]} 25. Rae2
{[%clk 0:02:31.5]} 25... Bg5 {[%clk 0:00:40.6]} 26. Ba3 {[%clk 0:02:08.9]} 26...
b5 {[%clk 0:00:29.5]} 27. axb5 {[%clk 0:02:04.3]} 27... cxb5 {[%clk 0:00:30.3]}
28. g3 {[%clk 0:02:04.4]} 28... Rf6 {[%clk 0:00:23.9]} 29. g4 {[%clk 0:02:05.4]}
29... h5 {[%clk 0:00:24.2]} 30. Bb2 {[%clk 0:02:02.2]} 30... hxg4 {[%clk
0:00:24.2]} 31. hxg4 {[%clk 0:02:03.2]} 31... Nh6 {[%clk 0:00:25.6]} 32. d5
{[%clk 0:02:02.3]} 32... Rg6 {[%clk 0:00:25.8]} 33. Re6 {[%clk 0:01:50.6]} 33...
Rxe6 {[%clk 0:00:19.7]} 34. dxe6 {[%clk 0:01:39.3]} 34... Nxf5 {[%clk
0:00:16.8]} 35. gxf5 {[%clk 0:01:41.2]} 35... Bf6 {[%clk 0:00:18.4]} 36. Bxf6
{[%clk 0:01:37.9]} 36... gxf6 {[%clk 0:00:19.5]} 37. Rc1 {[%clk 0:01:38.9]}
37... a5 {[%clk 0:00:14.9]} 38. bxa5 {[%clk 0:01:39.2]} 38... Rxa5 {[%clk
0:00:15.8]} 39. Rc8+ {[%clk 0:01:33.6]} 39... Ke7 {[%clk 0:00:16.7]} 40. Rc7+
{[%clk 0:01:34.9]} 40... Ke8 {[%clk 0:00:18]} 41. Rc8+ {[%clk 0:01:26.4]} 41...
Ke7 {[%clk 0:00:18.5]} 42. Rc7+ {[%clk 0:01:28.1]} 42... Ke8 {[%clk 0:00:19.7]}
43. Kg2 {[%clk 0:01:19.9]} 43... b4 {[%clk 0:00:20.9]} 44. Rc8+ {[%clk
0:01:07.3]} 44... Ke7 {[%clk 0:00:21.5]} 45. Rc7+ {[%clk 0:01:09]} 45... Ke8
{[%clk 0:00:21.9]} 46. Rc8+ {[%clk 0:01:09.3]} 46... Ke7 {[%clk 0:00:23.1]} 47.
Rc7+ {[%clk 0:01:11.2]} 47... Ke8 {[%clk 0:00:24.4]} 1/2-1/2

[Event "*** Titled Tuesday Blitz"]
[Site "Chess.com"]
[Date "2019.07.02"]
[Round "7"]
[White "timator"]
[Black "Zq1"]
[Result "0-1"]
[WhiteElo "2391"]
[BlackElo "2561"]
[TimeControl "180+2"]
[EndTime "14:35:53 PDT"]
[Termination "Zq1 won by resignation"]

1. Nf3 {[%clk 0:03:01.9]} 1... g6 {[%clk 0:03:00.3]} 2. d4 {[%clk 0:02:58.7]}
2... Bg7 {[%clk 0:03:01.7]} 3. g3 {[%clk 0:03:00.6]} 3... c5 {[%clk 0:03:01.7]}
4. Bg2 {[%clk 0:03:02.5]} 4... cxd4 {[%clk 0:03:02.5]} 5. Nxd4 {[%clk
0:03:03.2]} 5... d5 {[%clk 0:03:02.9]} 6. O-O {[%clk 0:03:03.8]} 6... e5 {[%clk
0:03:03.6]} 7. Nb3 {[%clk 0:03:05]} 7... Ne7 {[%clk 0:03:04.5]} 8. c4 {[%clk
0:03:05.9]} 8... d4 {[%clk 0:03:03.6]} 9. e3 {[%clk 0:03:03.1]} 9... Nbc6 {[%clk
0:03:03.8]} 10. exd4 {[%clk 0:03:04.1]} 10... exd4 {[%clk 0:03:04.6]} 11. Bg5
{[%clk 0:03:03]} 11... O-O {[%clk 0:03:02.3]} 12. Re1 {[%clk 0:03:00.6]} 12...
h6 {[%clk 0:03:00.1]} 13. Bxc6 {[%clk 0:02:43.5]} 13... hxg5 {[%clk 0:03:00.3]}
14. Bg2 {[%clk 0:02:44.5]} 14... g4 {[%clk 0:02:55.1]} 15. Na3 {[%clk
0:02:43.4]} 15... Nc6 {[%clk 0:02:43.9]} 16. Nc5 {[%clk 0:02:40.1]} 16... d3
{[%clk 0:02:23.7]} 17. Bxc6 {[%clk 0:02:07.7]} 17... bxc6 {[%clk 0:02:09.7]} 18.
Qd2 {[%clk 0:01:16]} 18... Rb8 {[%clk 0:01:53.7]} 19. Rab1 {[%clk 0:01:03.7]}
19... Bf5 {[%clk 0:01:49.4]} 20. Ne4 {[%clk 0:00:34.7]} 20... Qd4 {[%clk
0:01:37.4]} 21. Nc3 {[%clk 0:00:08.2]} 21... Rxb2 {[%clk 0:01:36.4]} 22. Qxb2
{[%clk 0:00:07]} 22... Qxc3 {[%clk 0:01:37.3]} 23. Qxc3 {[%clk 0:00:08.4]} 23...
Bxc3 {[%clk 0:01:37.4]} 24. Red1 {[%clk 0:00:10.3]} 24... Rd8 {[%clk 0:01:26.8]}
25. Rb3 {[%clk 0:00:11]} 25... Ba5 {[%clk 0:01:11.4]} 26. Nb1 {[%clk 0:00:04.6]}
26... d2 {[%clk 0:01:09.5]} 27. Rb2 {[%clk 0:00:05.4]} 27... Be4 {[%clk
0:00:52.7]} 28. Rdxd2 {[%clk 0:00:04.6]} 28... Bxd2 {[%clk 0:00:52.4]} 29. Nxd2
{[%clk 0:00:06.5]} 29... Bf3 {[%clk 0:00:49]} 30. h3 {[%clk 0:00:07.5]} 30... f5
{[%clk 0:00:42.5]} 31. Kh2 {[%clk 0:00:08.9]} 31... Bd1 {[%clk 0:00:41]} 32.
hxg4 {[%clk 0:00:08]} 32... fxg4 {[%clk 0:00:37.9]} 33. Ne4 {[%clk 0:00:08.6]}
33... Kg7 {[%clk 0:00:32.1]} 34. Rb7+ {[%clk 0:00:09.1]} 34... Kh6 {[%clk
0:00:30.4]} 35. Rxa7 {[%clk 0:00:09.3]} 35... Bf3 {[%clk 0:00:30.1]} 36. Re7
{[%clk 0:00:06.8]} 36... Rd1 {[%clk 0:00:28.4]} 0-1

[Event "*** Titled Tuesday Blitz"]
[Site "Chess.com"]
[Date "2019.07.02"]
[Round "7"]
[White "PIwan"]
[Black "jk13"]
[Result "1/2-1/2"]
[WhiteElo "2470"]
[BlackElo "2586"]
[TimeControl "180+2"]
[EndTime "14:35:59 PDT"]
[Termination "Game drawn by repetition"]

1. c4 {[%clk 0:03:01.9]} 1... e6 {[%clk 0:03:00.7]} 2. Nc3 {[%clk 0:03:02.5]}
2... Bb4 {[%clk 0:03:01.4]} 3. Qb3 {[%clk 0:02:58.2]} 3... Bxc3 {[%clk
0:02:59.4]} 4. Qxc3 {[%clk 0:02:58.6]} 4... Nf6 {[%clk 0:03:01.3]} 5. b3 {[%clk
0:02:48.7]} 5... O-O {[%clk 0:03:03.2]} 6. Bb2 {[%clk 0:02:49.6]} 6... d5 {[%clk
0:03:01.7]} 7. Nf3 {[%clk 0:02:49]} 7... b6 {[%clk 0:03:02.8]} 8. e3 {[%clk
0:02:48.2]} 8... Bb7 {[%clk 0:03:02.9]} 9. Be2 {[%clk 0:02:44.4]} 9... c5 {[%clk
0:03:04]} 10. cxd5 {[%clk 0:02:43.3]} 10... Bxd5 {[%clk 0:02:57.6]} 11. d4
{[%clk 0:02:35.6]} 11... Nbd7 {[%clk 0:02:52.5]} 12. dxc5 {[%clk 0:02:30.9]}
12... bxc5 {[%clk 0:02:43.6]} 13. O-O {[%clk 0:02:29.6]} 13... a5 {[%clk
0:02:42.7]} 14. Rad1 {[%clk 0:02:23.3]} 14... a4 {[%clk 0:02:38.4]} 15. Bb5
{[%clk 0:02:01.3]} 15... a3 {[%clk 0:01:23.3]} 16. Ba1 {[%clk 0:01:57]} 16...
Qa5 {[%clk 0:01:12]} 17. Bxd7 {[%clk 0:01:18.5]} 17... Qxc3 {[%clk 0:01:10.4]}
18. Bxc3 {[%clk 0:01:19.6]} 18... Nxd7 {[%clk 0:01:11.8]} 19. e4 {[%clk
0:01:19.3]} 19... Bc6 {[%clk 0:01:12.3]} 20. Rd6 {[%clk 0:01:16.3]} 20... Rfc8
{[%clk 0:01:07]} 21. Rfd1 {[%clk 0:01:14.3]} 21... Nf6 {[%clk 0:01:04.9]} 22.
Bxf6 {[%clk 0:01:03.3]} 22... gxf6 {[%clk 0:01:05.5]} 23. Nd2 {[%clk 0:01:04.7]}
23... Bb7 {[%clk 0:00:40.4]} 24. Nc4 {[%clk 0:01:03.5]} 24... Ra6 {[%clk
0:00:22]} 25. f3 {[%clk 0:00:51.7]} 25... Bc6 {[%clk 0:00:11.6]} 26. Rd8+ {[%clk
0:00:47.7]} 26... Rxd8 {[%clk 0:00:12.5]} 27. Rxd8+ {[%clk 0:00:49.6]} 27... Kg7
{[%clk 0:00:14.2]} 28. Rd6 {[%clk 0:00:47.3]} 28... Kf8 {[%clk 0:00:14.9]} 29.
Rd8+ {[%clk 0:00:44.1]} 29... Ke7 {[%clk 0:00:15.7]} 30. Rh8 {[%clk 0:00:44.8]}
30... Bb5 {[%clk 0:00:17.2]} 31. Nd2 {[%clk 0:00:45.9]} 31... Rd6 {[%clk
0:00:17.7]} 32. Nc4 {[%clk 0:00:43]} 32... Bxc4 {[%clk 0:00:18.4]} 33. bxc4
{[%clk 0:00:44.9]} 33... Rd2 {[%clk 0:00:18.7]} 34. Ra8 {[%clk 0:00:41.5]} 34...
Rxa2 {[%clk 0:00:20.2]} 35. h4 {[%clk 0:00:42.5]} 35... h5 {[%clk 0:00:20.9]}
36. Kh2 {[%clk 0:00:42.8]} 36... Ra1 {[%clk 0:00:20.3]} 37. g4 {[%clk
0:00:42.2]} 37... hxg4 {[%clk 0:00:19.5]} 38. fxg4 {[%clk 0:00:44.1]} 38... Re1
{[%clk 0:00:20.8]} 39. h5 {[%clk 0:00:39.8]} 39... Rxe4 {[%clk 0:00:22.1]} 40.
Kg3 {[%clk 0:00:40.6]} 40... Rxc4 {[%clk 0:00:20.8]} 41. h6 {[%clk 0:00:37.6]}
41... Rc3+ {[%clk 0:00:21.8]} 42. Kg2 {[%clk 0:00:37.9]} 42... Rc2+ {[%clk
0:00:22.4]} 43. Kg3 {[%clk 0:00:39]} 43... Rc3+ {[%clk 0:00:23.7]} 44. Kg2
{[%clk 0:00:39.6]} 44... Rc2+ {[%clk 0:00:24.9]} 45. Kg3 {[%clk 0:00:41]} 45...
Rc3+ {[%clk 0:00:26]} 1/2-1/2

[Event "*** Titled Tuesday Blitz"]
[Site "Chess.com"]
[Date "2019.07.02"]
[Round "7"]
[White "nitpicker"]
[Black "chess4life23"]
[Result "1-0"]
[WhiteElo "2251"]
[BlackElo "2337"]
[TimeControl "180+2"]
[EndTime "14:35:59 PDT"]
[Termination "nitpicker won by checkmate"]

1. e4 {[%clk 0:03:01.9]} 1... c6 {[%clk 0:03:00.6]} 2. d4 {[%clk 0:03:01.6]}
2... d5 {[%clk 0:03:01]} 3. exd5 {[%clk 0:03:02.7]} 3... cxd5 {[%clk 0:03:01.8]}
4. c4 {[%clk 0:03:04.4]} 4... Nf6 {[%clk 0:03:02.1]} 5. Nc3 {[%clk 0:03:05.3]}
5... e6 {[%clk 0:03:02.7]} 6. Nf3 {[%clk 0:03:04.7]} 6... Be7 {[%clk 0:03:02.9]}
7. Bg5 {[%clk 0:03:01]} 7... O-O {[%clk 0:02:41.1]} 8. Bd3 {[%clk 0:02:48.3]}
8... dxc4 {[%clk 0:02:41.9]} 9. Bxc4 {[%clk 0:02:49.9]} 9... a6 {[%clk
0:02:43.1]} 10. a3 {[%clk 0:02:48]} 10... b5 {[%clk 0:02:43.8]} 11. Bd3 {[%clk
0:02:48.1]} 11... Bb7 {[%clk 0:02:44.8]} 12. Bc2 {[%clk 0:02:45.4]} 12... Nd5
{[%clk 0:02:23.5]} 13. Qd3 {[%clk 0:02:41.9]} 13... f5 {[%clk 0:02:22.7]} 14.
Bd2 {[%clk 0:02:30.3]} 14... Nd7 {[%clk 0:01:52.9]} 15. Ne2 {[%clk 0:02:15.6]}
15... Rc8 {[%clk 0:01:47]} 16. O-O {[%clk 0:02:11.1]} 16... N7f6 {[%clk
0:01:35.7]} 17. Ng5 {[%clk 0:01:35.4]} 17... Qd6 {[%clk 0:01:28.1]} 18. Rfe1
{[%clk 0:01:23]} 18... Ng4 {[%clk 0:01:08.8]} 19. g3 {[%clk 0:01:02.1]} 19...
Ndf6 {[%clk 0:00:55.6]} 20. Bb3 {[%clk 0:00:53.6]} 20... Nd5 {[%clk 0:00:43.9]}
21. Nf3 {[%clk 0:00:35.8]} 21... Qc6 {[%clk 0:00:30.6]} 22. Rac1 {[%clk
0:00:35.7]} 22... Qd6 {[%clk 0:00:26.6]} 23. Nf4 {[%clk 0:00:36.4]} 23... Nxf4
{[%clk 0:00:24]} 24. Bxf4 {[%clk 0:00:37.2]} 24... Qd8 {[%clk 0:00:15.2]} 25.
Bxe6+ {[%clk 0:00:29.7]} 25... Kh8 {[%clk 0:00:16.8]} 26. Rxc8 {[%clk
0:00:23.7]} 26... Bxc8 {[%clk 0:00:17.6]} 27. Bxc8 {[%clk 0:00:21.5]} 27... Bf6
{[%clk 0:00:15.3]} 28. Bxf5 {[%clk 0:00:20.2]} 28... h5 {[%clk 0:00:13.8]} 29.
Bxg4 {[%clk 0:00:19.3]} 29... hxg4 {[%clk 0:00:15.7]} 30. Be5 {[%clk 0:00:20.8]}
30... gxf3 {[%clk 0:00:15.7]} 31. Qxf3 {[%clk 0:00:21.6]} 31... Bxe5 {[%clk
0:00:12.5]} 32. Qh5+ {[%clk 0:00:22.4]} 32... Kg8 {[%clk 0:00:14]} 33. dxe5
{[%clk 0:00:23.4]} 33... Qd2 {[%clk 0:00:14.3]} 34. Qe2 {[%clk 0:00:23.7]} 34...
Qd5 {[%clk 0:00:14.4]} 35. e6 {[%clk 0:00:24.7]} 35... Re8 {[%clk 0:00:15.9]}
36. e7 {[%clk 0:00:25.8]} 36... Kf7 {[%clk 0:00:17.1]} 37. Qe5 {[%clk
0:00:20.6]} 37... Qd3 {[%clk 0:00:16.1]} 38. Qe6# {[%clk 0:00:16.5]} 1-0

[Event "*** Titled Tuesday Blitz"]
[Site "Chess.com"]
[Date "2019.07.02"]
[Round "7"]
[White "sebsep"]
[Black "saraswathii"]
[Result "0-1"]
[WhiteElo "2143"]
[BlackElo "2325"]
[TimeControl "180+2"]
[EndTime "14:36:02 PDT"]
[Termination "saraswathii won by resignation"]

1. e4 {[%clk 0:03:00.1]} 1... c5 {[%clk 0:03:00.3]} 2. Nf3 {[%clk 0:02:59.1]}
2... e6 {[%clk 0:03:00.9]} 3. d4 {[%clk 0:02:59.3]} 3... cxd4 {[%clk 0:03:02.8]}
4. Nxd4 {[%clk 0:03:00.8]} 4... Nf6 {[%clk 0:03:03.9]} 5. Nc3 {[%clk 0:02:55.1]}
5... Nc6 {[%clk 0:03:01.3]} 6. Nxc6 {[%clk 0:02:51.5]} 6... bxc6 {[%clk
0:03:03.2]} 7. Bd3 {[%clk 0:02:52.1]} 7... d5 {[%clk 0:02:52.4]} 8. O-O {[%clk
0:02:52.3]} 8... Bd6 {[%clk 0:02:46.3]} 9. Re1 {[%clk 0:02:47.1]} 9... Qc7
{[%clk 0:02:36.2]} 10. h3 {[%clk 0:02:47.2]} 10... O-O {[%clk 0:02:35.9]} 11.
Bg5 {[%clk 0:02:44.1]} 11... Nd7 {[%clk 0:02:31.8]} 12. Qh5 {[%clk 0:02:37.6]}
12... f5 {[%clk 0:01:31.8]} 13. exd5 {[%clk 0:02:32]} 13... exd5 {[%clk
0:01:23]} 14. Be7 {[%clk 0:02:31.3]} 14... Bxe7 {[%clk 0:01:08.5]} 15. Rxe7
{[%clk 0:02:33.2]} 15... Qd6 {[%clk 0:01:09.5]} 16. Rae1 {[%clk 0:02:30.5]}
16... Nf6 {[%clk 0:01:08.3]} 17. Qg5 {[%clk 0:02:28.7]} 17... Rf7 {[%clk
0:01:03.5]} 18. Rxf7 {[%clk 0:02:27.7]} 18... Kxf7 {[%clk 0:01:05.4]} 19. Bxf5
{[%clk 0:02:27.8]} 19... Bxf5 {[%clk 0:01:04.2]} 20. Qxf5 {[%clk 0:02:29.7]}
20... Rb8 {[%clk 0:01:05]} 21. b3 {[%clk 0:02:06.5]} 21... Rb4 {[%clk 0:01:04]}
22. a3 {[%clk 0:01:50.7]} 22... Rf4 {[%clk 0:01:02.5]} 23. Qc8 {[%clk
0:01:51.7]} 23... Kg6 {[%clk 0:00:50.1]} 24. a4 {[%clk 0:01:31.8]} 24... Qc5
{[%clk 0:00:43.6]} 25. Nd1 {[%clk 0:01:25.2]} 25... Qxc2 {[%clk 0:00:43]} 26. g3
{[%clk 0:00:59.7]} 26... Rf3 {[%clk 0:00:35.8]} 27. Qe6 {[%clk 0:00:52]} 27...
c5 {[%clk 0:00:21.5]} 28. h4 {[%clk 0:00:50.1]} 28... Rxb3 {[%clk 0:00:17.6]}
29. Ne3 {[%clk 0:00:47.1]} 29... Qe4 {[%clk 0:00:17.6]} 30. Qxe4+ {[%clk
0:00:20.7]} 30... dxe4 {[%clk 0:00:18.6]} 31. Rc1 {[%clk 0:00:21.5]} 31... Nd7
{[%clk 0:00:19.2]} 32. Rc4 {[%clk 0:00:22]} 32... Rb4 {[%clk 0:00:19.9]} 33. Kf1
{[%clk 0:00:19.2]} 33... Rxc4 {[%clk 0:00:19]} 34. Nxc4 {[%clk 0:00:21.1]} 34...
Nb6 {[%clk 0:00:20.2]} 35. Ke2 {[%clk 0:00:23]} 35... Nxc4 {[%clk 0:00:20.6]}
0-1

[Event "*** Titled Tuesday Blitz"]
[Site "Chess.com"]
[Date "2019.07.02"]
[Round "7"]
[White "checkmatequen"]
[Black "Komissarov_alex"]
[Result "1-0"]
[WhiteElo "2222"]
[BlackElo "2116"]
[TimeControl "180+2"]
[EndTime "14:36:06 PDT"]
[Termination "checkmatequen won on time"]

1. e4 {[%clk 0:03:01.9]} 1... e5 {[%clk 0:02:59.3]} 2. Nf3 {[%clk 0:03:01.8]}
2... Nc6 {[%clk 0:02:59.3]} 3. Bb5 {[%clk 0:03:01.5]} 3... a6 {[%clk 0:02:58.8]}
4. Ba4 {[%clk 0:03:00.2]} 4... Nf6 {[%clk 0:02:58.7]} 5. d3 {[%clk 0:02:59.8]}
5... Bc5 {[%clk 0:02:56.8]} 6. c3 {[%clk 0:03:00.4]} 6... b5 {[%clk 0:02:52.6]}
7. Bb3 {[%clk 0:03:01.3]} 7... O-O {[%clk 0:02:42.6]} 8. O-O {[%clk 0:03:02]}
8... d5 {[%clk 0:02:40.1]} 9. Qe2 {[%clk 0:02:59.5]} 9... Bg4 {[%clk 0:02:32.3]}
10. Nbd2 {[%clk 0:02:57.8]} 10... d4 {[%clk 0:02:21.1]} 11. h3 {[%clk 0:02:57]}
11... Bh5 {[%clk 0:02:19]} 12. Rd1 {[%clk 0:02:53.7]} 12... Qe7 {[%clk
0:02:07.4]} 13. Nf1 {[%clk 0:02:48.3]} 13... h6 {[%clk 0:01:59.3]} 14. g4 {[%clk
0:02:41.9]} 14... Bg6 {[%clk 0:01:57.9]} 15. Ng3 {[%clk 0:02:36.9]} 15... dxc3
{[%clk 0:01:49]} 16. bxc3 {[%clk 0:02:33.3]} 16... b4 {[%clk 0:01:44.3]} 17. Nh4
{[%clk 0:02:22.4]} 17... Kh8 {[%clk 0:01:18]} 18. Ngf5 {[%clk 0:02:17.2]} 18...
Qd7 {[%clk 0:01:04]} 19. Qf3 {[%clk 0:02:08.1]} 19... Ng8 {[%clk 0:01:00.8]} 20.
g5 {[%clk 0:01:57.1]} 20... h5 {[%clk 0:00:45.3]} 21. Kg2 {[%clk 0:01:49.8]}
21... bxc3 {[%clk 0:00:40.1]} 22. Ng3 {[%clk 0:01:48.3]} 22... Nd4 {[%clk
0:00:38.1]} 23. Qe3 {[%clk 0:01:35.4]} 23... Nxb3 {[%clk 0:00:33.4]} 24. d4
{[%clk 0:01:27.1]} 24... Bxd4 {[%clk 0:00:28.1]} 25. axb3 {[%clk 0:01:25.2]}
25... c2 {[%clk 0:00:26.8]} 26. Rd3 {[%clk 0:01:16.5]} 26... Qc6 {[%clk
0:00:20.6]} 27. Rxd4 {[%clk 0:01:14.1]} 27... exd4 {[%clk 0:00:19.3]} 28. Qxd4
{[%clk 0:01:11.3]} 28... Rad8 {[%clk 0:00:20.6]} 29. Qe3 {[%clk 0:01:12.3]}
29... Rd1 {[%clk 0:00:18.3]} 30. Qf3 {[%clk 0:01:08]} 30... Re8 {[%clk
0:00:16.9]} 31. Nhf5 {[%clk 0:01:05.5]} 31... h4 {[%clk 0:00:14.1]} 32. Bb2
{[%clk 0:00:51.6]} 32... hxg3 {[%clk 0:00:11.4]} 33. Bxg7+ {[%clk 0:00:52.3]}
33... Kh7 {[%clk 0:00:02.5]} 34. Nxg3 {[%clk 0:00:25]} 1-0